{"text_format":"3","workbook":"xlsx","n_sheets":2,"sheets":["Projektnachverfolgung","Setup"],"not_rendered":{"defined_names":6},"read":"whole","date_system":"1900"}

{"sheet":"Projektnachverfolgung","index":0,"n_rows":13,"n_cols":15,"rows_kept":13}
[null,"Projektnachverfolgung"]
[null,null,"Kennzeichnen bei Prozentsatz Über-/Unterschreitung: ",{"v":0.25,"d":"25%"}]
[]
[null,"Projekt","Kategorie","Zugewiesen an","Geschätzter\nAnfang","Geschätztes \nEnde","Geschätzter Arbeitsaufwand (in Stunden)","Geschätzte Dauer (in Tagen)","Ist- \nAnfang","Ist-\nEnde","Kennzeichnungssymbol für Über-/Unterschreitung der Ist-Arbeit (in Stunden)","Ist-Arbeit (in Stunden)","Kennzeichnungssymbol für Über-/Unterschreitung der Ist-Dauer (in Tagen)","Ist-Dauer (in Tagen)","Notizen"]
[null,"Projekt 1","Kategorie 1","Mitarbeiter 1",{"$f":"TODAY()-65","v":"2016-08-13"},{"$f":"TODAY()-5","v":"2016-10-12"},210,{"$f":"IF(COUNTA(Projektnachverfolgung!$E5,Projektnachverfolgung!$F5)<>2,\"\",DAYS360(Projektnachverfolgung!$E5,Projektnachverfolgung!$F5,FALSE))","v":59},{"$f":"TODAY()-65","v":"2016-08-13"},{"$f":"TODAY()","v":"2016-10-17"},{"$f":"IFERROR(IF(ProjektNachverfolgung[Ist-Arbeit (in Stunden)]=0,\"\",IF(ABS((ProjektNachverfolgung[[#This Row],[Ist-Arbeit (in Stunden)]]-ProjektNachverfolgung[[#This Row],[Geschätzter Arbeitsaufwand (in Stunden)]])/ProjektNachverfolgung[[#This Row],[Geschätzter Arbeitsaufwand (in Stunden)]])>Kennzeichnungs_Prozentsatz,1,0)),\"\")","v":1},300,{"$f":"IFERROR(IF(ProjektNachverfolgung[Ist-Dauer (in Tagen)]=0,\"\",IF(ABS((ProjektNachverfolgung[[#This Row],[Ist-Dauer (in Tagen)]]-ProjektNachverfolgung[[#This Row],[Geschätzte Dauer (in Tagen)]])/ProjektNachverfolgung[[#This Row],[Geschätzte Dauer (in Tagen)]])>Kennzeichnungs_Prozentsatz,1,0)),\"\")","v":0},{"$f":"IF(COUNTA(Projektnachverfolgung!$I5,Projektnachverfolgung!$J5)<>2,\"\",DAYS360(Projektnachverfolgung!$I5,Projektnachverfolgung!$J5,FALSE))","v":64}]
[null,"Projekt 2","Kategorie 2","Mitarbeiter 4",{"$f":"TODAY()-41","v":"2016-09-06"},{"$f":"TODAY()-10","v":"2016-10-07"},400,{"$f":"IF(COUNTA(Projektnachverfolgung!$E6,Projektnachverfolgung!$F6)<>2,\"\",DAYS360(Projektnachverfolgung!$E6,Projektnachverfolgung!$F6,FALSE))","v":31},{"$f":"TODAY()-41","v":"2016-09-06"},{"$f":"TODAY()-7","v":"2016-10-10"},{"$f":"IFERROR(IF(ProjektNachverfolgung[Ist-Arbeit (in Stunden)]=0,\"\",IF(ABS((ProjektNachverfolgung[[#This Row],[Ist-Arbeit (in Stunden)]]-ProjektNachverfolgung[[#This Row],[Geschätzter Arbeitsaufwand (in Stunden)]])/ProjektNachverfolgung[[#This Row],[Geschätzter Arbeitsaufwand (in Stunden)]])>Kennzeichnungs_Prozentsatz,1,0)),\"\")","v":0},390,{"$f":"IFERROR(IF(ProjektNachverfolgung[Ist-Dauer (in Tagen)]=0,\"\",IF(ABS((ProjektNachverfolgung[[#This Row],[Ist-Dauer (in Tagen)]]-ProjektNachverfolgung[[#This Row],[Geschätzte Dauer (in Tagen)]])/ProjektNachverfolgung[[#This Row],[Geschätzte Dauer (in Tagen)]])>Kennzeichnungs_Prozentsatz,1,0)),\"\")","v":0},{"$f":"IF(COUNTA(Projektnachverfolgung!$I6,Projektnachverfolgung!$J6)<>2,\"\",DAYS360(Projektnachverfolgung!$I6,Projektnachverfolgung!$J6,FALSE))","v":34}]
[null,"Projekt 3","Kategorie 1","Mitarbeiter 2",{"$f":"TODAY()-100","v":"2016-07-09"},{"$f":"TODAY()-40","v":"2016-09-07"},500,{"$f":"IF(COUNTA(Projektnachverfolgung!$E7,Projektnachverfolgung!$F7)<>2,\"\",DAYS360(Projektnachverfolgung!$E7,Projektnachverfolgung!$F7,FALSE))","v":58},{"$f":"TODAY()-100","v":"2016-07-09"},{"$f":"TODAY()-27","v":"2016-09-20"},{"$f":"IFERROR(IF(ProjektNachverfolgung[Ist-Arbeit (in Stunden)]=0,\"\",IF(ABS((ProjektNachverfolgung[[#This Row],[Ist-Arbeit (in Stunden)]]-ProjektNachverfolgung[[#This Row],[Geschätzter Arbeitsaufwand (in Stunden)]])/ProjektNachverfolgung[[#This Row],[Geschätzter Arbeitsaufwand (in Stunden)]])>Kennzeichnungs_Prozentsatz,1,0)),\"\")","v":0},500,{"$f":"IFERROR(IF(ProjektNachverfolgung[Ist-Dauer (in Tagen)]=0,\"\",IF(ABS((ProjektNachverfolgung[[#This Row],[Ist-Dauer (in Tagen)]]-ProjektNachverfolgung[[#This Row],[Geschätzte Dauer (in Tagen)]])/ProjektNachverfolgung[[#This Row],[Geschätzte Dauer (in Tagen)]])>Kennzeichnungs_Prozentsatz,1,0)),\"\")","v":0},{"$f":"IF(COUNTA(Projektnachverfolgung!$I7,Projektnachverfolgung!$J7)<>2,\"\",DAYS360(Projektnachverfolgung!$I7,Projektnachverfolgung!$J7,FALSE))","v":71}]
[null,"Projekt 4","Kategorie 2","Mitarbeiter 3",{"$f":"TODAY()-90","v":"2016-07-19"},{"$f":"TODAY()-80","v":"2016-07-29"},250,{"$f":"IF(COUNTA(Projektnachverfolgung!$E8,Projektnachverfolgung!$F8)<>2,\"\",DAYS360(Projektnachverfolgung!$E8,Projektnachverfolgung!$F8,FALSE))","v":10},{"$f":"TODAY()-90","v":"2016-07-19"},{"$f":"TODAY()-71","v":"2016-08-07"},{"$f":"IFERROR(IF(ProjektNachverfolgung[Ist-Arbeit (in Stunden)]=0,\"\",IF(ABS((ProjektNachverfolgung[[#This Row],[Ist-Arbeit (in Stunden)]]-ProjektNachverfolgung[[#This Row],[Geschätzter Arbeitsaufwand (in Stunden)]])/ProjektNachverfolgung[[#This Row],[Geschätzter Arbeitsaufwand (in Stunden)]])>Kennzeichnungs_Prozentsatz,1,0)),\"\")","v":0},276,{"$f":"IFERROR(IF(ProjektNachverfolgung[Ist-Dauer (in Tagen)]=0,\"\",IF(ABS((ProjektNachverfolgung[[#This Row],[Ist-Dauer (in Tagen)]]-ProjektNachverfolgung[[#This Row],[Geschätzte Dauer (in Tagen)]])/ProjektNachverfolgung[[#This Row],[Geschätzte Dauer (in Tagen)]])>Kennzeichnungs_Prozentsatz,1,0)),\"\")","v":1},{"$f":"IF(COUNTA(Projektnachverfolgung!$I8,Projektnachverfolgung!$J8)<>2,\"\",DAYS360(Projektnachverfolgung!$I8,Projektnachverfolgung!$J8,FALSE))","v":18}]
[null,"Projekt 5","Kategorie 3","Mitarbeiter 2",{"$f":"TODAY()-90","v":"2016-07-19"},{"$f":"TODAY()-50","v":"2016-08-28"},300,{"$f":"IF(COUNTA(Projektnachverfolgung!$E9,Projektnachverfolgung!$F9)<>2,\"\",DAYS360(Projektnachverfolgung!$E9,Projektnachverfolgung!$F9,FALSE))","v":39},{"$f":"TODAY()-90","v":"2016-07-19"},{"$f":"TODAY()-44","v":"2016-09-03"},{"$f":"IFERROR(IF(ProjektNachverfolgung[Ist-Arbeit (in Stunden)]=0,\"\",IF(ABS((ProjektNachverfolgung[[#This Row],[Ist-Arbeit (in Stunden)]]-ProjektNachverfolgung[[#This Row],[Geschätzter Arbeitsaufwand (in Stunden)]])/ProjektNachverfolgung[[#This Row],[Geschätzter Arbeitsaufwand (in Stunden)]])>Kennzeichnungs_Prozentsatz,1,0)),\"\")","v":0},310,{"$f":"IFERROR(IF(ProjektNachverfolgung[Ist-Dauer (in Tagen)]=0,\"\",IF(ABS((ProjektNachverfolgung[[#This Row],[Ist-Dauer (in Tagen)]]-ProjektNachverfolgung[[#This Row],[Geschätzte Dauer (in Tagen)]])/ProjektNachverfolgung[[#This Row],[Geschätzte Dauer (in Tagen)]])>Kennzeichnungs_Prozentsatz,1,0)),\"\")","v":0},{"$f":"IF(COUNTA(Projektnachverfolgung!$I9,Projektnachverfolgung!$J9)<>2,\"\",DAYS360(Projektnachverfolgung!$I9,Projektnachverfolgung!$J9,FALSE))","v":44}]
[null,"Projekt 6","Kategorie 4","Mitarbeiter 4",{"$f":"TODAY()-60","v":"2016-08-18"},{"$f":"TODAY()-50","v":"2016-08-28"},500,{"$f":"IF(COUNTA(Projektnachverfolgung!$E10,Projektnachverfolgung!$F10)<>2,\"\",DAYS360(Projektnachverfolgung!$E10,Projektnachverfolgung!$F10,FALSE))","v":10},{"$f":"TODAY()-60","v":"2016-08-18"},{"$f":"TODAY()-45","v":"2016-09-02"},{"$f":"IFERROR(IF(ProjektNachverfolgung[Ist-Arbeit (in Stunden)]=0,\"\",IF(ABS((ProjektNachverfolgung[[#This Row],[Ist-Arbeit (in Stunden)]]-ProjektNachverfolgung[[#This Row],[Geschätzter Arbeitsaufwand (in Stunden)]])/ProjektNachverfolgung[[#This Row],[Geschätzter Arbeitsaufwand (in Stunden)]])>Kennzeichnungs_Prozentsatz,1,0)),\"\")","v":0},510,{"$f":"IFERROR(IF(ProjektNachverfolgung[Ist-Dauer (in Tagen)]=0,\"\",IF(ABS((ProjektNachverfolgung[[#This Row],[Ist-Dauer (in Tagen)]]-ProjektNachverfolgung[[#This Row],[Geschätzte Dauer (in Tagen)]])/ProjektNachverfolgung[[#This Row],[Geschätzte Dauer (in Tagen)]])>Kennzeichnungs_Prozentsatz,1,0)),\"\")","v":1},{"$f":"IF(COUNTA(Projektnachverfolgung!$I10,Projektnachverfolgung!$J10)<>2,\"\",DAYS360(Projektnachverfolgung!$I10,Projektnachverfolgung!$J10,FALSE))","v":14}]
[null,"Projekt 7","Kategorie 5","Mitarbeiter 1",{"$f":"TODAY()-44","v":"2016-09-03"},{"$f":"TODAY()-20","v":"2016-09-27"},750,{"$f":"IF(COUNTA(Projektnachverfolgung!$E11,Projektnachverfolgung!$F11)<>2,\"\",DAYS360(Projektnachverfolgung!$E11,Projektnachverfolgung!$F11,FALSE))","v":24},{"$f":"TODAY()-44","v":"2016-09-03"},{"$f":"TODAY()-15","v":"2016-10-02"},{"$f":"IFERROR(IF(ProjektNachverfolgung[Ist-Arbeit (in Stunden)]=0,\"\",IF(ABS((ProjektNachverfolgung[[#This Row],[Ist-Arbeit (in Stunden)]]-ProjektNachverfolgung[[#This Row],[Geschätzter Arbeitsaufwand (in Stunden)]])/ProjektNachverfolgung[[#This Row],[Geschätzter Arbeitsaufwand (in Stunden)]])>Kennzeichnungs_Prozentsatz,1,0)),\"\")","v":0},790,{"$f":"IFERROR(IF(ProjektNachverfolgung[Ist-Dauer (in Tagen)]=0,\"\",IF(ABS((ProjektNachverfolgung[[#This Row],[Ist-Dauer (in Tagen)]]-ProjektNachverfolgung[[#This Row],[Geschätzte Dauer (in Tagen)]])/ProjektNachverfolgung[[#This Row],[Geschätzte Dauer (in Tagen)]])>Kennzeichnungs_Prozentsatz,1,0)),\"\")","v":0},{"$f":"IF(COUNTA(Projektnachverfolgung!$I11,Projektnachverfolgung!$J11)<>2,\"\",DAYS360(Projektnachverfolgung!$I11,Projektnachverfolgung!$J11,FALSE))","v":29}]
[null,"Projekt 8","Kategorie 2","Mitarbeiter 1",{"$f":"TODAY()-39","v":"2016-09-08"},{"$f":"TODAY()","v":"2016-10-17"},450,{"$f":"IF(COUNTA(Projektnachverfolgung!$E12,Projektnachverfolgung!$F12)<>2,\"\",DAYS360(Projektnachverfolgung!$E12,Projektnachverfolgung!$F12,FALSE))","v":39},{"$f":"TODAY()-45","v":"2016-09-02"},{"$f":"TODAY()-5","v":"2016-10-12"},{"$f":"IFERROR(IF(ProjektNachverfolgung[Ist-Arbeit (in Stunden)]=0,\"\",IF(ABS((ProjektNachverfolgung[[#This Row],[Ist-Arbeit (in Stunden)]]-ProjektNachverfolgung[[#This Row],[Geschätzter Arbeitsaufwand (in Stunden)]])/ProjektNachverfolgung[[#This Row],[Geschätzter Arbeitsaufwand (in Stunden)]])>Kennzeichnungs_Prozentsatz,1,0)),\"\")","v":0},430,{"$f":"IFERROR(IF(ProjektNachverfolgung[Ist-Dauer (in Tagen)]=0,\"\",IF(ABS((ProjektNachverfolgung[[#This Row],[Ist-Dauer (in Tagen)]]-ProjektNachverfolgung[[#This Row],[Geschätzte Dauer (in Tagen)]])/ProjektNachverfolgung[[#This Row],[Geschätzte Dauer (in Tagen)]])>Kennzeichnungs_Prozentsatz,1,0)),\"\")","v":0},{"$f":"IF(COUNTA(Projektnachverfolgung!$I12,Projektnachverfolgung!$J12)<>2,\"\",DAYS360(Projektnachverfolgung!$I12,Projektnachverfolgung!$J12,FALSE))","v":40}]
[null,"Projekt 9","Kategorie 4","Mitarbeiter 1","2016-02-05","2016-06-09",250,{"$f":"IF(COUNTA(Projektnachverfolgung!$E13,Projektnachverfolgung!$F13)<>2,\"\",DAYS360(Projektnachverfolgung!$E13,Projektnachverfolgung!$F13,FALSE))","v":124},"2016-03-05","2016-05-05",{"$f":"IFERROR(IF(ProjektNachverfolgung[Ist-Arbeit (in Stunden)]=0,\"\",IF(ABS((ProjektNachverfolgung[[#This Row],[Ist-Arbeit (in Stunden)]]-ProjektNachverfolgung[[#This Row],[Geschätzter Arbeitsaufwand (in Stunden)]])/ProjektNachverfolgung[[#This Row],[Geschätzter Arbeitsaufwand (in Stunden)]])>Kennzeichnungs_Prozentsatz,1,0)),\"\")","v":0},200,{"$f":"IFERROR(IF(ProjektNachverfolgung[Ist-Dauer (in Tagen)]=0,\"\",IF(ABS((ProjektNachverfolgung[[#This Row],[Ist-Dauer (in Tagen)]]-ProjektNachverfolgung[[#This Row],[Geschätzte Dauer (in Tagen)]])/ProjektNachverfolgung[[#This Row],[Geschätzte Dauer (in Tagen)]])>Kennzeichnungs_Prozentsatz,1,0)),\"\")","v":1},{"$f":"IF(COUNTA(Projektnachverfolgung!$I13,Projektnachverfolgung!$J13)<>2,\"\",DAYS360(Projektnachverfolgung!$I13,Projektnachverfolgung!$J13,FALSE))","v":60}]

{"sheet":"Setup","index":1,"n_rows":10,"n_cols":3,"rows_kept":10}
[null,"Setup"]
[]
[]
[null,"Kategoriename","Mitarbeitername"]
[null,"Kategorie 1","Mitarbeiter 1"]
[null,"Kategorie 2","Mitarbeiter 2"]
[null,"Kategorie 3","Mitarbeiter 3"]
[null,"Kategorie 4","Mitarbeiter 4"]
[null,"Kategorie 5","Mitarbeiter 5"]
[null,"Kategorie 6","Mitarbeiter 6"]